fUSD/lending_fUSD_20251231
["ID","MTS","AMOUNT","RATE_DAILY","PERIOD"]
[400135085,1767145265577,-256.3071327,0.00015127,2]
[400135086,1767145269634,-500.0,0.00015127,2]
[400135093,1767145272252,-192.75356912,0.00015127,2]
[400135177,1767145369594,-218.40995586,0.00014908,2]
[400135178,1767145372358,-166.66,0.00014908,2]
[400135214,1767145474808,-336.01279608,0.00014908,2]
[400135215,1767145477463,-171.15624172,0.00014908,2]
[400135222,1767145504360,171.94,0.00011786,2]
[400135239,1767145534442,-156.79467377,0.00014573,2]
[400135240,1767145534465,-155.03043116,0.00014573,2]
[400135241,1767145534488,-10.99900027,0.00014573,2]
[400135243,1767145550023,-167.31792982,0.00014499,2]
[400135244,1767145554443,-181.65421159,0.00014499,2]
[400135245,1767145557382,-397.25099534,0.00014499,2]
[400135246,1767145558967,-167.84776934,0.00014499,2]
[400135247,1767145561050,-172.44,0.00014499,2]
[400135248,1767145564954,-288.72024401,0.00014499,2]
[400135249,1767145567614,-455.30712212,0.00014499,2]
[400135250,1767145569635,-194.10623019,0.00014499,2]
[400135251,1767145571860,-313.01347322,0.00014499,2]
[400135252,1767145573883,-324.40644022,0.00014499,2]
[400135253,1767145575944,-215.48741753,0.00014499,2]
[400135254,1767145578718,-181.22537532,0.00014499,2]
[400135255,1767145583196,-227.16478493,0.00014473,2]
[400135256,1767145583221,-49.0206365,0.00014499,2]
[400135257,1767145584464,1482.47,0.00015,10]
[400135258,1767145585799,-469.56049341,0.00014499,2]
[400135259,1767145587431,-492.41227926,0.00014499,2]
[400135260,1767145589560,-1060.1599741,0.00014499,2]
[400135261,1767145592547,-443.91783557,0.00014499,2]
[400135262,1767145599677,-175.23372225,0.00014499,2]
[400135263,1767145624265,-288.27407549,0.00014499,2]
[400135264,1767145625757,-71.49090251,0.00014499,2]
[400135265,1767145625782,-83.77003644,0.00014536,2]
[400135266,1767145629031,-250.0,0.00014518,2]
[400135267,1767145629056,-111.22996356,0.00014536,2]
[400135268,1767145629081,-26.44654946,0.00014573,2]
[400135269,1767145631832,-114.6557242,0.00014573,2]
[400135270,1767145631854,-158.86457293,0.00014691,2]
[400135271,1767145699361,-200.0,0.00014681,2]
[400135272,1767145699385,-119.47994353,0.00014686,2]
[400135273,1767145729328,-75.52005647,0.00014686,2]
[400135274,1767145729349,-327.71597036,0.00014686,2]
[400135275,1767145729371,-91.13542707,0.00014691,2]
[400135276,1767145729393,-5.6285461,0.00014864,2]
[400135277,1767145733095,-215.00547981,0.00014864,2]
[400135278,1767145735865,-342.9528579,0.00014864,2]
[400135279,1767145737458,-286.11407827,0.00014864,2]
[400135280,1767145740448,-350.29903792,0.00014864,2]
[400135281,1767145740489,-171.47555375,0.00014865,2]
[400135282,1767145742733,-242.78048737,0.00014865,2]
[400135284,1767145789950,-160.66260409,0.00014589,2]
[400135301,1767145831547,-160.662604,0.00014516,2]
[400135302,1767145831558,-237.18386869,0.00014589,2]
[400135303,1767145831602,-3424.35352722,0.00014589,2]
[400135304,1767145831611,-300.0,0.00014864,2]
[400135305,1767145831622,-300.0,0.00014864,2]
[400135306,1767145831632,-1200.0,0.00014864,2]
[400135307,1767145831642,-1830.66647262,0.00014865,2]
[400135308,1767145831654,-369.39188292,0.00014865,2]
[400135309,1767145831666,-2927.71524413,0.00014865,2]
[400135310,1767145831677,-405.57120192,0.00014865,2]
[400135311,1767145831688,-602.24695809,0.00014865,2]
[400135312,1767145831710,-2489.346055,0.00014865,2]
[400135313,1767145831720,-195.0,0.00014924,2]
[400135314,1767145831730,-298.38249317,0.00014924,2]
[400135315,1767145831741,-155.52,0.00014983,2]
[400135316,1767145831751,-36208.79659816,0.00015117,2]
[400135317,1767145831765,-300.0,0.00015123,2]
[400135319,1767145831775,-151.0,0.00015124,2]
[400135320,1767145831785,-151.0,0.00015124,2]
[400135321,1767145831795,-300.0,0.00015126,2]
[400135322,1767145831805,-42366.72098297,0.00015127,2]
[400135323,1767145831816,-11478.41063555,0.00015127,2]
[400135324,1767145831828,-20397.60588291,0.00015127,2]
[400135325,1767145831840,-1024.72246773,0.00015127,2]
[400135326,1767145831851,-8834.16445594,0.00015127,2]
[400135328,1767145837580,-500.0,0.00015126,2]
[400135329,1767145837591,-500.0,0.00015126,2]
[400135330,1767145837602,-500.0,0.00015126,2]
[400135331,1767145837612,-303.44478166,0.00015126,2]
[400135332,1767145837622,-555.05666877,0.00015126,2]
[400135333,1767145837632,-724.16785858,0.00015126,2]
[400135334,1767145837644,-500.0,0.00015126,2]
[400135335,1767145837655,-500.0,0.00015126,2]
[400135336,1767145837664,-500.0,0.00015126,2]
[400135337,1767145837673,-230.80213372,0.00015126,2]
[400135338,1767145837683,-500.0,0.00015126,2]
[400135339,1767145837693,-445.76410112,0.00015126,2]
[400135340,1767145837703,-724.16785858,0.00015126,2]
[400135341,1767145837714,-500.0,0.00015126,2]
[400135342,1767145837725,-500.0,0.00015126,2]
[400135343,1767145837735,-500.0,0.00015126,2]
[400135344,1767145837745,-724.16785858,0.00015126,2]
[400135345,1767145837755,-500.0,0.00015126,2]
[400135346,1767145837774,-500.0,0.00015126,2]
[400135347,1767145837784,-500.0,0.00015126,2]
[400135348,1767145837794,-500.0,0.00015126,2]
[400135349,1767145837805,-724.16785858,0.00015126,2]
[400135350,1767145837815,-500.0,0.00015126,2]
[400135351,1767145837825,-724.16785858,0.00015126,2]
[400135352,1767145837837,-248.39438303,0.00015126,2]
[400135353,1767145837847,-500.0,0.00015126,2]
[400135355,1767145837857,-500.0,0.00015126,2]
[400135357,1767145837866,-500.0,0.00015126,2]
[400135359,1767145837876,-724.16785858,0.00015126,2]
[400135360,1767145837886,-500.0,0.00015126,2]
[400135361,1767145837897,-369.05838694,0.00015126,2]
[400135362,1767145837907,-500.0,0.00015126,2]
[400135363,1767145837917,-724.16785858,0.00015126,2]
[400135364,1767145837926,-500.0,0.00015126,2]
[400135365,1767145837936,-724.16785858,0.00015126,2]
[400135366,1767145837946,-500.0,0.00015126,2]
[400135368,1767145837956,-500.0,0.00015126,2]
[400135370,1767145837966,-724.16785858,0.00015126,2]
[400135372,1767145837976,-724.16785858,0.00015126,2]
[400135374,1767145837985,-500.0,0.00015126,2]
[400135377,1767145837995,-724.16785858,0.00015126,2]
[400135379,1767145838005,-724.16785858,0.00015126,2]
[400135381,1767145838015,-577.87345747,0.00015126,2]
[400135383,1767145838025,-724.16785858,0.00015126,2]
[400135385,1767145838034,-500.0,0.00015126,2]
[400135387,1767145838043,-724.16785858,0.00015126,2]
[400135389,1767145838053,-724.16785858,0.00015126,2]
[400135391,1767145838062,-724.16785858,0.00015126,2]
[400135393,1767145838072,-724.16785858,0.00015126,2]
[400135395,1767145838082,-724.16785858,0.00015126,2]
[400135397,1767145838092,-724.16785858,0.00015126,2]
[400135399,1767145838101,-724.16785858,0.00015126,2]
[400135401,1767145838111,-724.16785858,0.00015126,2]
[400135403,1767145838125,-724.16785858,0.00015126,2]
[400135406,1767145838135,-724.16785858,0.00015126,2]
[400135408,1767145838144,-724.16785858,0.00015126,2]
[400135410,1767145838155,-724.16785858,0.00015126,2]
[400135412,1767145838165,-724.16785858,0.00015126,2]
[400135414,1767145838174,-724.16785858,0.00015126,2]
[400135416,1767145838185,-724.16785858,0.00015126,2]
[400135418,1767145838195,-724.16785858,0.00015126,2]
[400135420,1767145838206,-724.16785858,0.00015126,2]
[400135422,1767145838216,-724.16785858,0.00015126,2]
[400135424,1767145838226,-724.16785858,0.00015126,2]
[400135426,1767145838236,-724.16785858,0.00015126,2]
[400135428,1767145838245,-724.16785858,0.00015126,2]
[400135430,1767145838255,-724.16785858,0.00015126,2]
[400135432,1767145838265,-724.16785858,0.00015126,2]
[400135434,1767145838276,-724.16785858,0.00015126,2]
[400135436,1767145838286,-724.16785858,0.00015126,2]
[400135438,1767145838297,-724.16785858,0.00015126,2]
[400135440,1767145838307,-724.16785858,0.00015126,2]
[400135442,1767145838317,-724.16785858,0.00015126,2]
[400135444,1767145838327,-724.16785858,0.00015126,2]
[400135446,1767145838337,-724.16785858,0.00015126,2]
[400135448,1767145838346,-724.16785858,0.00015126,2]
[400135450,1767145838356,-724.16785858,0.00015126,2]
[400135452,1767145838367,-724.16785858,0.00015126,2]
[400135454,1767145838377,-724.16785858,0.00015126,2]
[400135456,1767145838387,-724.16785858,0.00015126,2]
[400135459,1767145838400,-724.16785858,0.00015126,2]
[400135461,1767145838410,-724.16785858,0.00015126,2]
[400135463,1767145838421,-724.16785858,0.00015126,2]
[400135465,1767145838432,-724.16785858,0.00015126,2]
[400135467,1767145838442,-724.16785858,0.00015126,2]
[400135469,1767145838452,-724.16785858,0.00015126,2]
[400135471,1767145838470,-724.16785858,0.00015126,2]
[400135473,1767145838480,-724.16785858,0.00015126,2]
[400135476,1767145838498,-724.16785858,0.00015126,2]
[400135478,1767145838514,-724.16785858,0.00015126,2]
[400135480,1767145838524,-724.16785858,0.00015126,2]
[400135482,1767145838536,-57908.38289466,0.00015127,2]
[400135484,1767145838547,-2943.34826989,0.00015223,2]
[400135486,1767145838557,-151.0,0.00015322,2]
[400135488,1767145838567,-151.0,0.00015322,2]
[400135490,1767145838577,-984.44,0.00015325,2]
[400135492,1767145838586,-500.0,0.00015327,2]
[400135494,1767145838597,-19006.98031399,0.00015328,2]
[400135496,1767145838608,-356.21209119,0.00015441,2]
[400135498,1767145838619,-1145.8859804,0.000155,2]
[400135500,1767145838629,-20942.03580538,0.00015541,2]
[400135503,1767145838648,-34303.21331712,0.00015541,2]
[400135505,1767145838657,-151.0,0.00015541,2]
[400135507,1767145838667,-151.0,0.00015541,2]
[400135510,1767145838678,-500.0,0.00015548,2]
[400135512,1767145838688,-500.0,0.00015548,2]
[400135514,1767145838698,-500.0,0.00015548,2]
[400135516,1767145838708,-500.0,0.00015548,2]
[400135518,1767145838718,-500.0,0.00015548,2]
[400135520,1767145838728,-500.0,0.00015548,2]
[400135522,1767145838738,-486.09133029,0.00015548,2]
[400135524,1767145838749,-500.0,0.00015548,2]
[400135526,1767145838760,-500.0,0.00015548,2]
[400135528,1767145838770,-500.0,0.00015548,2]
[400135530,1767145838781,-500.0,0.00015548,2]
[400135532,1767145838791,-500.0,0.00015548,2]
[400135534,1767145838802,-210.40374024,0.00015548,2]
[400135536,1767145838812,-407.26580308,0.00015548,2]
[400135538,1767145838821,-500.0,0.00015548,2]
[400135540,1767145838831,-500.0,0.00015548,2]
[400135542,1767145838842,-463.75087483,0.00015548,2]
[400135544,1767145838854,-151.0,0.00015548,2]
[400135546,1767145838863,-151.0,0.00015548,2]
[400135549,1767145838878,-151.0,0.00015548,2]
[400135551,1767145838888,-151.0,0.00015548,2]
[400135553,1767145838898,-151.0,0.00015548,2]
[400135555,1767145838908,-151.0,0.00015548,2]
[400135557,1767145838918,-151.0,0.00015548,2]
[400135559,1767145838928,-151.0,0.00015548,2]
[400135561,1767145838938,-151.0,0.00015548,2]
[400135563,1767145838947,-151.0,0.00015548,2]
[400135565,1767145838958,-151.0,0.00015548,2]
[400135567,1767145838967,-500.0,0.00015556,2]
[400135569,1767145838977,-509.08666052,0.00015556,2]
[400135571,1767145838988,-500.0,0.00015556,2]
[400135573,1767145838998,-413.67741699,0.00015556,2]
[400135575,1767145839009,-258.68717711,0.00015556,2]
[400135577,1767145839020,-401.34819076,0.00015556,2]
[400135579,1767145839030,-135124.06733354,0.00015557,2]
[400135642,1767145839631,-343.42901379,0.00015557,2]
[400135652,1767145839684,-4339.50068609,0.00015557,2]
[400135655,1767145839696,-474.60097449,0.00015557,2]
[400135662,1767145839740,-12500.0,0.00015557,2]
[400135786,1767145840947,-1.7e-07,0.00015557,2]
[400135787,1767145840961,-8736.45365512,0.00015557,2]
[400135788,1767145840973,-8947.21879473,0.00015557,2]
[400135789,1767145840984,-8943.78386462,0.00015557,2]
[400135791,1767145840996,-9077.54866152,0.00015557,2]
[400135793,1767145841007,-8943.84023489,0.00015557,2]
[400136050,1767145843322,-527.50353436,0.00015557,2]
[400136052,1767145843339,-3700.92515172,0.00015557,2]
[400136126,1767145844148,-388.64047566,0.00015557,2]
[400136132,1767145844199,-1602.30727724,0.00015557,2]
[400136281,1767145845626,-265.59999999,0.00015557,2]
[400136288,1767145845680,-1611.51,0.00015557,2]
[400136294,1767145845736,-59637.95927297,0.00015557,2]
[400136297,1767145845746,-151.0,0.00015557,2]
[400136299,1767145845756,-211.327443,0.00015557,2]
[400136301,1767145845766,-211.327443,0.00015557,2]
[400136302,1767145845779,-211.327443,0.00015557,2]
[400136305,1767145845789,-211.327443,0.00015557,2]
[400136307,1767145845799,-151.0,0.00015557,2]
[400136309,1767145845811,-151.0,0.00015557,2]
[400136311,1767145845822,-207.108258,0.00015557,2]
[400136313,1767145845832,-151.0,0.00015557,2]
[400136315,1767145845842,-151.0,0.00015559,2]
[400136317,1767145845852,-200.0,0.00015559,2]
[400136319,1767145845862,-156.25161271,0.00015559,2]
[400136321,1767145845871,-207.4,0.00015559,2]
[400136323,1767145845881,-156.587,0.00015559,2]
[400136325,1767145845891,-215.0738,0.00015559,2]
[400136327,1767145845900,-165.79781762,0.00015559,2]
[400136329,1767145845910,-223.0315306,0.00015559,2]
[400136331,1767145845920,-231.28369723,0.00015559,2]
[400136333,1767145845929,-239.84119403,0.00015559,2]
[400136335,1767145845938,-248.71531821,0.00015559,2]
[400136337,1767145845947,-257.91778498,0.00015559,2]
[400136339,1767145845956,-267.46074303,0.00015559,2]
[400136341,1767145845968,-277.35679052,0.00015559,2]
[400136343,1767145845977,-250.0,0.00015559,2]
[400136345,1767145845987,-250.0,0.00015559,2]
[400136347,1767145845997,-574.12855637,0.00015559,2]
[400136349,1767145846006,-250.0,0.00015559,2]
[400136351,1767145846016,-250.0,0.00015559,2]
[400136353,1767145846026,-250.0,0.00015559,2]
[400136355,1767145846036,-250.0,0.00015559,2]
[400136358,1767145846046,-250.0,0.00015559,2]
[400136360,1767145846055,-250.0,0.00015559,2]
[400136362,1767145846065,-250.0,0.00015559,2]
[400136364,1767145846075,-578.20924308,0.00015559,2]
[400136366,1767145846088,-250.0,0.00015559,2]
[400136368,1767145846098,-1000.0,0.00015559,2]
[400136370,1767145846107,-250.0,0.00015559,2]
[400136372,1767145846118,-250.0,0.00015559,2]
[400136374,1767145846127,-1000.0,0.00015559,2]
[400136376,1767145846136,-286.57291421,0.00015559,2]
[400136378,1767145846146,-250.0,0.00015559,2]
[400136380,1767145846156,-1000.0,0.00015559,2]
[400136382,1767145846165,-500.0,0.00015559,2]
[400136384,1767145846175,-1000.0,0.00015559,2]
[400136386,1767145846185,-500.0,0.00015559,2]
[400136388,1767145846194,-500.0,0.00015559,2]
[400136390,1767145846204,-250.0,0.00015559,2]
[400136392,1767145846214,-1000.0,0.00015559,2]
[400136394,1767145846224,-500.0,0.00015559,2]
[400136396,1767145846233,-500.0,0.00015559,2]
[400136398,1767145846243,-250.0,0.00015559,2]
[400136400,1767145846253,-666.50320045,0.00015559,2]
[400136402,1767145846262,-500.0,0.00015559,2]
[400136404,1767145846272,-500.0,0.00015559,2]
[400136406,1767145846281,-250.0,0.00015559,2]
[400136408,1767145846291,-500.0,0.00015559,2]
[400136410,1767145846300,-500.0,0.00015559,2]
[400136412,1767145846310,-250.0,0.00015559,2]
[400136414,1767145846320,-500.0,0.00015559,2]
[400136416,1767145846330,-500.0,0.00015559,2]
[400136418,1767145846340,-250.0,0.00015559,2]
[400136420,1767145846350,-500.0,0.00015559,2]
[400136422,1767145846360,-322.6107,0.00015559,2]
[400136424,1767145846370,-203.29356135,0.00015559,2]
[400136426,1767145846379,-250.0,0.00015559,2]
[400136428,1767145846389,-500.0,0.00015559,2]
[400136430,1767145846399,-500.0,0.00015559,2]
[400136432,1767145846409,-250.0,0.00015559,2]
[400136435,1767145846419,-500.0,0.00015559,2]
[400136436,1767145846429,-500.0,0.00015559,2]
[400136437,1767145846440,-500.0,0.00015559,2]
[400136438,1767145846450,-500.0,0.00015559,2]
[400136439,1767145846459,-500.0,0.00015559,2]
[400136440,1767145846469,-500.0,0.00015559,2]
[400136441,1767145846480,-500.0,0.00015559,2]
[400136442,1767145846489,-500.0,0.00015559,2]
[400136443,1767145846499,-500.0,0.00015559,2]
[400136444,1767145846509,-500.0,0.00015559,2]
[400136445,1767145846519,-500.0,0.00015559,2]
[400136447,1767145846528,-500.0,0.00015559,2]
[400136448,1767145846538,-500.0,0.00015559,2]
[400136450,1767145846548,-600.42891232,0.00015559,2]
[400136452,1767145846558,-500.0,0.00015559,2]
[400136454,1767145846568,-500.0,0.00015559,2]
[400136456,1767145846578,-500.0,0.00015559,2]
[400136458,1767145846588,-500.0,0.00015559,2]
[400136460,1767145846597,-500.0,0.00015559,2]
[400136462,1767145846606,-282.59578642,0.00015559,2]
[400136464,1767145846617,-500.0,0.00015559,2]
[400136466,1767145846627,-984.44,0.00015599,2]
[400136469,1767145846638,-226.38023436,0.000156,2]
[400136471,1767145846647,-151.0,0.00015677,2]
[400136473,1767145846657,-151.0,0.00015677,2]
[400136475,1767145846666,-1000.0,0.00015789,2]
[400136477,1767145846675,-500.0,0.000158,2]
[400136479,1767145846684,-151.47,0.000158,2]
[400136481,1767145846694,-227.89640254,0.000158,2]
[400136483,1767145846703,-821.4008,0.000158,2]
[400136484,1767145846712,-500.0,0.00015833,2]
[400136486,1767145846722,-51002.29897107,0.00015841,2]
[400136488,1767145846732,-152.333521,0.00015841,2]
[400136490,1767145846742,-1075.32,0.00015845,2]
[400136492,1767145846751,-160.282,0.00015845,2]
[400136494,1767145846764,-984.44,0.00015873,2]
[400136497,1767145846774,-151.0,0.00015889,2]
[400136499,1767145846785,-211.327443,0.00015889,2]
[400136501,1767145846795,-211.327443,0.00015889,2]
[400136503,1767145846804,-211.327443,0.00015889,2]
[400136505,1767145846814,-211.327443,0.00015889,2]
[400136507,1767145846824,-151.0,0.00015889,2]
[400136509,1767145846834,-255.941939,0.00015889,2]
[400136511,1767145846844,-500.0,0.00015898,2]
[400136513,1767145846853,-500.0,0.00015898,2]
[400136515,1767145846863,-500.0,0.00015898,2]
[400136517,1767145846873,-575.53223802,0.00015898,2]
[400136519,1767145846883,-414.25447295,0.00015899,2]
[400136521,1767145846892,-500.0,0.00015899,2]
[400136523,1767145846901,-579.79676405,0.00015899,2]
[400136525,1767145846911,-500.0,0.00015899,2]
[400136527,1767145846920,-500.0,0.00015899,2]
[400136529,1767145846931,-500.0,0.00015899,2]
[400136531,1767145846940,-500.0,0.00015899,2]
[400136533,1767145846952,-267739.56594141,0.000159,2]
[400136536,1767145846965,-967.8418851,0.000159,2]
[400136538,1767145846976,-51014.00878772,0.000159,2]
[400136540,1767145846987,-2220.14925024,0.000159,2]
[400136545,1767145847024,-669422.50798174,0.000159,2]
[400136547,1767145847034,-151.0,0.000159,2]
[400136549,1767145847043,-211.327443,0.000159,2]
[400136551,1767145847053,-211.327443,0.000159,2]
[400136553,1767145847065,-211.327443,0.000159,2]
[400136555,1767145847074,-211.327443,0.000159,2]
[400136557,1767145847084,-151.0,0.000159,2]
[400136559,1767145847094,-500.0,0.00015918,2]
[400136561,1767145847103,-195.0,0.00015949,2]
[400136564,1767145847113,-250.0,0.00015949,2]
[400136566,1767145847123,-209.79565793,0.0001597,2]
[400136568,1767145847132,-150.0,0.00016006,2]
[400136570,1767145847141,-152.39911517,0.00016006,2]
[400136571,1767145847150,-155.76627088,0.00016006,2]
[400136573,1767145847160,-150.0,0.00016006,2]
[400136575,1767145847169,-252.54073326,0.00016006,2]
[400136578,1767145847179,-218.24657684,0.00016006,2]
[400136580,1767145847188,-150.0,0.00016006,2]
[400136582,1767145847197,-150.0,0.00016006,2]
[400136584,1767145847207,-195.0,0.00016048,2]
[400136586,1767145847217,-489.87,0.00016055,2]
[400136588,1767145847226,-150.0,0.00016061,2]
[400136590,1767145847237,-150.0,0.00016061,2]
[400136591,1767145847246,-150.0,0.00016061,2]
[400136593,1767145847256,-150.0,0.00016061,2]
[400136596,1767145847265,-881.6597611,0.00016072,2]
[400136598,1767145847278,-199.469334,0.00016072,2]
[400136600,1767145847292,-500.0,0.00016083,2]
[400136601,1767145847301,-3558.7073477,0.00016084,2]
[400136604,1767145847311,-64647.72709652,0.00016084,2]
[400136606,1767145847323,-72736.69174458,0.00016084,2]
[400136608,1767145847332,-3535.2386853,0.00016084,2]
[400136610,1767145847342,-158.977266,0.00016084,2]
[400136612,1767145847351,-211.327443,0.00016084,2]
[400136614,1767145847361,-211.327443,0.00016084,2]
[400136616,1767145847370,-211.327443,0.00016084,2]
[400136618,1767145847380,-211.327443,0.00016084,2]
[400136620,1767145847389,-151.0,0.00016084,2]
[400136622,1767145847398,-7011.71951493,0.00016087,2]
[400136624,1767145847407,-507.72040443,0.00016089,2]
[400136626,1767145847416,-510.40919778,0.00016089,2]
[400136628,1767145847426,-507.20388278,0.00016089,2]
[400136630,1767145847436,-504.0089764,0.00016089,2]
[400136632,1767145847444,-387.5524686,0.00016089,2]
[400136634,1767145847454,-501.76862766,0.00016089,2]
[400136636,1767145847463,-595.37131296,0.00016107,2]
[400136638,1767145847472,-500.0,0.00016107,2]
[400136640,1767145847481,-201.05636739,0.00016116,2]
[400136642,1767145847491,-150.0,0.00016116,2]
[400136644,1767145847501,-253.51746431,0.00016116,2]
[400136646,1767145847511,-201.6198566,0.00016116,2]
[400136648,1767145847520,-984.44,0.00016147,2]
[400136650,1767145847530,-195.0,0.00016149,2]
[400136652,1767145847539,-300.0,0.00016149,2]
[400136654,1767145847548,-1736.2618755,0.00016149,2]
[400136656,1767145847557,-2936.86441784,0.00016159,2]
[400136658,1767145847567,-2913.0,0.0001616,2]
[400136660,1767145847576,-220.60706774,0.0001617,2]
[400136662,1767145847586,-166.66,0.00016182,2]
[400136664,1767145847595,-151.0,0.0001619,2]
[400136666,1767145847604,-151.0,0.0001619,2]
[400136668,1767145847614,-151.0,0.0001619,2]
[400136670,1767145847623,-151.0,0.0001619,2]
[400136672,1767145847632,-151.0,0.0001619,2]
[400136674,1767145847642,-151.0,0.0001619,2]
[400136676,1767145847654,-151.0,0.0001619,2]
[400136678,1767145847666,-151.0,0.0001619,2]
[400136680,1767145847675,-151.0,0.0001619,2]
[400136682,1767145847684,-151.0,0.0001619,2]
[400136684,1767145847694,-151.0,0.0001619,2]
[400136686,1767145847703,-151.0,0.0001619,2]
[400136688,1767145847712,-211.327443,0.00016245,2]
[400136690,1767145847722,-211.327443,0.00016245,2]
[400136692,1767145847731,-211.327443,0.00016245,2]
[400136694,1767145847741,-211.327451,0.00016245,2]
[400136696,1767145847751,-151.0,0.00016245,2]
[400136698,1767145847763,-510.0,0.00016245,2]
[400136700,1767145847774,-407.0,0.0001627,2]
[400136702,1767145847783,-300.0,0.0001627,2]
[400136704,1767145847793,-500.0,0.00016299,2]
[400136706,1767145847803,-350.73548493,0.000163,2]
[400136708,1767145847813,-822.61163494,0.000163,2]
[400136710,1767145847823,-1000.0,0.000163,2]
[400136712,1767145847832,-1000.0,0.000163,2]
[400136714,1767145847844,-1000.0,0.000163,2]
[400136716,1767145847853,-1000.0,0.000163,2]
[400136718,1767145847863,-1000.0,0.000163,2]
[400136721,1767145847873,-1000.0,0.000163,2]
[400136723,1767145847883,-1000.0,0.000163,2]
[400136725,1767145847892,-1000.0,0.000163,2]
[400136727,1767145847901,-1000.0,0.000163,2]
[400136729,1767145847911,-1000.0,0.000163,2]
[400136730,1767145847920,-1000.0,0.000163,2]
[400136732,1767145847930,-1000.0,0.000163,2]
[400136734,1767145847939,-1000.0,0.000163,2]
[400136736,1767145847951,-1000.0,0.000163,2]
[400136739,1767145847960,-1000.0,0.000163,2]
[400136741,1767145847970,-1000.0,0.000163,2]
[400136743,1767145847979,-1000.0,0.000163,2]
[400136744,1767145847988,-1000.0,0.000163,2]
[400136747,1767145847998,-1000.0,0.000163,2]
[400136749,1767145848008,-1000.0,0.000163,2]
[400136751,1767145848017,-1000.0,0.000163,2]
[400136753,1767145848027,-1000.0,0.000163,2]
[400136755,1767145848037,-304.72422029,0.000163,2]
[400136757,1767145848046,-540.0,0.0001635,2]
[400136759,1767145848056,-150.08837424,0.00016352,2]
[400136761,1767145848065,-507.76807719,0.00016352,2]
[400136763,1767145848075,-195.0,0.00016352,2]
[400136765,1767145848090,-250.0,0.00016352,2]
[400136767,1767145848100,-817.24274162,0.00016399,2]
[400136769,1767145848109,-984.44,0.00016421,2]
[400136771,1767145848119,-500.0,0.00016438,2]
[400136773,1767145848128,-500.0,0.00016438,2]
[400136775,1767145848137,-280.24071412,0.00016438,2]
[400136777,1767145848150,-1606.32,0.00016438,2]
[400136779,1767145848160,-156.709731,0.00016438,2]
[400136782,1767145848172,-151.0,0.00016438,2]
[400136784,1767145848186,-151.0,0.00016438,2]
[400136786,1767145848202,-186.488176,0.00016438,2]
[400136789,1767145848215,-1000.0,0.000165,2]
[400136791,1767145848227,-420.0,0.00016549,2]
[400136793,1767145848239,-617.40005154,0.00016655,2]
[400136795,1767145848251,-984.44,0.00016695,2]
[400136797,1767145848264,-436.52,0.00016877,2]
[400136800,1767145848275,-178.56781622,0.000169,2]
[400136802,1767145848286,-287.61899177,0.00016928,2]
[400136804,1767145848296,-334.5472959,0.00016928,2]
[400136806,1767145848306,-984.44,0.00016969,2]
[400136808,1767145848316,-4620.91,0.00016986,2]
[400136810,1767145848326,-2016.9167726,0.00016996,2]
[400136812,1767145848337,-300.0,0.00016999,2]
[400136814,1767145848347,-670.74310067,0.00016999,2]
[400136816,1767145848358,-300.0,0.00016999,2]
[400136818,1767145848369,-300.0,0.00016999,2]
[400136821,1767145848380,-666.0,0.00016999,2]
[400136823,1767145848390,-300.0,0.00016999,2]
[400136825,1767145848402,-666.0,0.00016999,2]
[400136827,1767145848412,-500.0,0.00016999,2]
[400136829,1767145848423,-500.0,0.00016999,2]
[400136831,1767145848434,-516.66830415,0.00016999,2]